bitfinex-derivatives/quotes_ETHF0:USTF0_20250224
["timestamp","ask_amount","ask_price","bid_price","bid_amount"]
[1740363824731,3.92759,2778.6,2778.3,2.622]
[1740363825036,3.2078,2778.6,2778.3,2.622]
[1740363825331,3.2078,2779.0,2778.3,2.622]
[1740363825639,3.2078,2778.7,2778.3,3.34183]
[1740363826034,3.2078,2778.7,2778.4,0.71981]
[1740363826332,3.2078,2778.7,2778.3,3.34183]
[1740363826533,3.2078,2778.7,2778.3,2.622]
[1740363826734,3.2078,2778.8,2778.3,2.622]
[1740363827236,3.2078,2779.2,2778.3,2.622]
[1740363827540,3.2078,2778.9,2778.6,0.71976]
[1740363827739,3.2078,2778.9,2778.5,0.71978]
[1740363827931,3.2078,2778.9,2778.3,2.622]
[1740363828235,0.71981,2778.5,2778.3,0.5659]
[1740363828436,3.2078,2778.9,2777.9,0.72533733]
[1740363828437,0.71986,2778.3,2777.9,0.72533733]
[1740363828633,0.71986,2778.3,2778.0,2.621]
[1740363829036,3.92757,2778.6,2778.2,0.71985]
[1740363829229,3.2078,2778.6,2778.0,2.621]
[1740363829436,3.2078,2779.0,2778.1,3.2078]
[1740363829935,3.2078,2778.7,2778.4,0.71981]
[1740363830231,3.2078,2778.7,2778.2,2.621]
[1740363830436,3.2078,2778.7,2778.5,0.71979]
[1740363830635,3.2078,2779.1,2778.2,2.621]
[1740363830835,3.2078,2779.1,2778.6,0.71977]
[1740363831030,0.71968,2779.0,2778.6,0.71977]
[1740363831235,0.71971,2778.9,2778.5,0.71978]
[1740363831431,3.2078,2778.8,2778.5,0.71978]
[1740363832233,3.2078,2778.8,2778.2,2.621]
[1740363832430,3.2078,2778.8,2778.5,0.71978]
[1740363832929,0.71967,2779.0,2778.6,0.71975]
[1740363833132,0.71967,2779.0,2778.2,2.621]
[1740363833332,3.2078,2779.1,2778.2,2.621]
[1740363833532,3.2078,2779.1,2778.8,0.7197]
[1740363834033,0.00539733,2779.3,2779.2,0.71961]
[1740363835139,3.2078,2779.8,2779.7,0.71948]
[1740363835347,0.71935,2780.2,2779.8,0.71946]
[1740363835839,3.2078,2780.3,2780.2,0.71935]
[1740363836436,0.00539733,2780.5,2780.0,0.00539733]
[1740363836640,0.00539733,2780.5,2780.2,0.71935]
[1740363837039,3.2078,2780.3,2780.1,2.614]
[1740363837238,3.2078,2780.3,2780.0,0.00539733]
[1740363837546,0.71938,2780.1,2780.0,0.00539733]
[1740363838145,3.2078,2780.3,2779.3,0.5233]
[1740363838344,3.2078,2779.7,2779.4,2.613]
[1740363838645,3.2078,2780.0,2779.5,0.71951]
[1740363838948,0.71945,2779.9,2779.5,0.71951]
[1740363839149,3.2078,2780.0,2779.4,2.613]
[1740363839447,0.71949,2779.7,2779.4,2.61839733]
[1740363839646,3.2078,2780.0,2779.4,2.61839733]
[1740363839849,0.71953,2779.5,2779.4,2.61839733]
[1740363840040,0.71953,2779.6,2779.4,2.61839733]
[1740363840239,0.5473,2779.9,2779.4,2.61839733]
[1740363840538,3.2078,2780.0,2779.4,2.61839733]
[1740363840737,0.71953,2779.5,2779.4,0.00539733]
[1740363841134,0.71972,2778.8,2778.7,2.607]
[1740363841339,3.2078,2779.1,2778.6,0.5278]
[1740363841540,3.92744,2779.1,2778.7,0.71972]
[1740363841745,3.2078,2779.4,2778.6,0.5278]
[1740363842048,3.92745,2779.1,2778.7,0.71973]
[1740363842242,3.2078,2779.1,2778.6,0.5278]
[1740363842448,3.92745,2779.1,2778.7,0.71973]
[1740363843047,3.2078,2779.1,2778.6,0.00539733]
[1740363843247,3.2078,2779.1,2778.6,2.61339733]
[1740363843442,3.2078,2779.1,2778.6,0.00539733]
[1740363843649,0.71969,2779.0,2778.6,0.00539733]
[1740363843847,0.71969,2779.0,2778.6,0.72516733]
[1740363844049,0.71973,2778.8,2778.6,0.00539733]
[1740363844345,0.71972,2778.8,2778.6,0.00539733]
[1740363844549,3.2078,2779.1,2778.6,0.00539733]
[1740363844948,0.71974,2778.7,2778.6,0.00539733]
[1740363845846,3.2078,2778.8,2778.0,19.955]
[1740363846049,3.2078,2778.4,2778.0,0.71992]
[1740363846252,3.92763,2778.4,2777.8,2.605]
[1740363846550,3.92763,2778.4,2778.0,0.71991]
[1740363846746,3.2078,2778.4,2778.1,0.71988]
[1740363846944,3.92763,2778.4,2778.0,0.72530733]
[1740363847548,2.604,2778.7,2778.0,3.21319733]
[1740363847847,2.604,2778.7,2778.0,0.00539733]
[1740363848050,0.71985,2778.3,2778.0,0.00539733]
[1740363848244,3.2078,2778.6,2778.0,0.00539733]
[1740363848440,2.604,2778.7,2778.5,0.71978]
[1740363848642,2.604,2778.7,2778.2,0.00393949]
[1740363848848,0.71985,2778.3,2778.2,0.00393949]
[1740363849038,2.604,2778.7,2778.2,0.00393949]
[1740363849039,3.2078,2778.5,2778.2,0.00393949]
[1740363849348,0.71985,2778.3,2778.2,0.00393949]
[1740363852852,3.2078,2778.5,2778.2,0.00393949]
[1740363853242,0.71985,2778.3,2778.2,0.00393949]
[1740363854451,4.04413782,2778.5,2778.3,0.71985]
[1740363854650,4.04413782,2778.5,2778.2,0.00393949]
[1740363854855,3.2078,2778.5,2778.2,0.00393949]
[1740363855052,0.71982,2778.4,2778.2,0.00393949]
[1740363855353,3.2078,2778.5,2778.2,0.00393949]
[1740363855556,3.2078,2778.5,2778.2,0.72379949]
[1740363855755,3.2078,2778.5,2778.3,0.71983]
[1740363856149,3.2078,2778.9,2778.4,3.2078]
[1740363856354,0.71968,2779.0,2778.6,0.71976]
[1740363857653,0.71969,2779.0,2778.4,0.5524]
[1740363857850,0.71969,2779.0,2778.6,0.71977]
[1740363858253,0.71965,2779.1,2778.4,0.5524]
[1740363858554,3.21319733,2779.2,2778.7,0.71974]
[1740363858754,0.00539733,2779.2,2778.7,3.2078]
[1740363858963,0.00539733,2779.2,2779.1,3.92744]
[1740363859169,0.00539733,2779.2,2779.1,6.52544]
[1740363859461,4.0441349,2779.9,2779.1,5.8058]
[1740363859754,3.2078,2779.9,2779.5,0.71952]
[1740363859954,3.2078,2780.2,2779.4,3.2078]
[1740363860157,3.2078,2780.5,2779.5,2.598]
[1740363860458,1.1173,2780.6,2779.5,2.598]
[1740363860459,0.71925,2780.6,2780.2,0.71934]
[1740363860656,0.00539733,2780.3,2780.2,0.71934]
[1740363861155,2.599,2781.0,2780.2,0.71934]
[1740363861156,3.2078,2781.2,2780.2,1.79839]
[1740363861360,3.2078,2781.6,2780.6,3.2078]
[1740363861655,3.2078,2781.6,2780.7,3.1326]
[1740363861871,3.2078,2781.3,2780.8,2.601]
[1740363862057,18.3066436,2781.7,2780.8,2.601]
[1740363862251,15.0988436,2781.7,2781.3,0.71905]
[1740363862453,0.00539733,2781.5,2781.1,3.2078]
[1740363862654,0.72442733,2781.5,2781.1,3.2078]
[1740363863054,0.00539733,2781.5,2781.0,0.00539733]
[1740363863363,3.92692,2781.1,2781.0,0.00539733]
[1740363863560,3.2078,2781.1,2781.0,0.00539733]
[1740363863759,0.00539733,2781.5,2781.2,0.71908]
[1740363863960,0.00539733,2781.5,2781.0,0.00539733]
[1740363863961,0.00539733,2781.5,2781.0,2.61039733]
[1740363864156,0.00539733,2781.5,2781.1,3.9269]
[1740363864358,0.00539733,2781.5,2781.3,0.71906]
[1740363864661,0.00539733,2781.5,2781.2,0.71908]
[1740363864863,0.00539733,2781.5,2781.1,3.2078]
[1740363865061,0.71907,2781.4,2781.1,3.2078]
[1740363865260,0.71908,2781.3,2781.1,5.8168]
[1740363865457,0.71905,2781.4,2781.1,5.8168]
[1740363865660,0.72443733,2781.5,2781.1,5.8168]
[1740363865857,0.71904,2781.4,2781.1,5.8168]
[1740363866362,0.00539733,2781.5,2781.1,5.8168]
[1740363866566,0.71909,2781.2,2781.0,0.55789733]
[1740363866767,0.71909,2781.2,2781.0,3.16389733]
[1740363866965,0.71912,2781.1,2781.0,0.00539733]
[1740363867166,0.71912,2781.1,2781.0,7.33e-06]
[1740363867468,6.71912,2781.1,2781.0,7.33e-06]
[1740363868363,0.71912,2781.1,2780.1,2.607]
[1740363868667,0.71916,2781.0,2780.1,2.607]
[1740363868969,0.71921,2780.8,2780.3,3.92711]
[1740363869268,3.2078,2780.9,2780.1,2.607]
[1740363869468,0.71927,2780.6,2780.1,3.32637]
[1740363869665,3.2078,2780.9,2780.2,0.00539733]
[1740363870168,0.71921,2780.8,2780.2,0.00539733]
[1740363870368,3.2078,2780.9,2780.3,0.71933]
[1740363870567,0.71922,2780.8,2780.3,0.71933]
[1740363870769,3.2078,2780.9,2780.2,0.00539733]
[1740363870969,3.92697,2780.9,2780.5,0.71926]
[1740363871171,3.2078,2780.9,2780.5,3.32326]
[1740363871471,3.92698,2780.9,2780.5,2.604]
[1740363871771,3.92698,2780.9,2780.5,3.32328]
[1740363871974,3.2078,2780.9,2780.5,2.604]
[1740363872164,3.7658,2781.4,2780.5,2.604]
[1740363872363,3.2078,2781.4,2780.5,2.604]
[1740363872564,3.21319733,2781.5,2780.8,0.71919]
[1740363872768,3.21319733,2781.5,2780.6,3.7672]
[1740363873066,0.71905,2781.4,2780.9,0.71915]
[1740363873268,3.21319733,2781.5,2780.9,2.6]
[1740363873569,3.21319733,2781.5,2780.9,5.8078]
[1740363873765,0.00539733,2781.5,2781.4,0.71904]
[1740363873971,0.00539733,2781.5,2781.4,2.6]
[1740363874373,0.00539733,2781.5,2781.4,3.31904]
[1740363875072,3.2078,2781.9,2781.4,2.6]
[1740363875263,3.2078,2782.2,2781.5,0.5555]
[1740363875463,0.71894,2781.9,2781.5,0.5555]
[1740363875671,0.7189,2782.0,2781.6,0.71899]
[1740363875872,0.71888,2782.1,2781.6,41.51899]
[1740363876474,0.00539733,2782.1,2781.6,40.80539733]
[1740363876673,0.72426733,2782.1,2781.7,0.71895]
[1740363876880,0.00539733,2782.1,2781.6,40.80539733]
[1740363877087,0.00539733,2782.1,2781.7,0.71894]
[1740363877281,0.00539733,2782.1,2781.6,40.80539733]
[1740363877482,0.00539733,2782.1,2781.9,0.7189]
[1740363877984,0.00539733,2782.1,2781.8,3.92672]
[1740363878179,0.72426733,2782.1,2781.8,3.2078]
[1740363878385,0.00539733,2782.1,2781.8,3.2078]
[1740363878584,0.71891,2781.9,2781.8,3.2078]
[1740363878787,0.00539733,2782.1,2781.8,3.2078]
[1740363879086,0.71897,2781.7,2781.6,1.08619733]
[1740363879779,0.00539733,2782.1,2781.6,1.08619733]
[1740363879980,0.71892,2781.9,2781.6,1.08619733]
[1740363880181,0.71897,2781.7,2781.6,1.08619733]
[1740363880385,0.71897,2781.7,2781.6,0.00539733]
[1740363880685,0.00539733,2782.1,2781.6,0.00539733]
[1740363880888,0.71896,2781.8,2781.6,0.00539733]
[1740363881488,0.71897,2781.7,2781.6,0.00539733]
[1740363882883,3.2078,2781.9,2781.6,0.00539733]
[1740363883087,0.71895,2781.8,2781.6,0.00539733]
[1740363883287,3.92673,2781.9,2781.6,0.00539733]
[1740363883487,0.71897,2781.7,2781.6,0.00539733]
[1740363883792,0.71895,2781.8,2781.6,0.00539733]
[1740363883987,3.92672,2781.9,2781.6,0.00539733]
[1740363884190,3.2078,2781.9,2781.6,0.00539733]
[1740363884491,0.71897,2781.7,2781.6,0.00539733]
[1740363884686,0.71896,2781.8,2781.6,0.00123074]
[1740363884885,3.2078,2781.9,2781.6,0.00123074]
[1740363885089,0.71897,2781.7,2781.6,0.00123074]
[1740363885288,3.2078,2781.9,2781.6,0.00123074]
[1740363885595,3.2078,2781.9,2781.7,0.71895]
[1740363885789,3.2078,2781.9,2781.6,0.00123074]
[1740363885990,0.00539733,2782.1,2782.0,0.71889]
[1740363886292,0.00539733,2782.1,2782.0,41.51889]
[1740363886588,0.71874,2782.6,2782.2,0.71882]
[1740363886789,0.71874,2782.6,2782.1,0.71885]
[1740363887091,18.8467436,2782.9,2782.0,40.8]
[1740363887293,0.71875,2782.6,2782.2,0.71883]
[1740363887592,0.71876,2782.5,2782.1,3.92665]
[1740363887793,0.00539733,2782.7,2782.1,3.2078]
[1740363888094,0.71877,2782.5,2782.1,3.92666]
[1740363888690,0.71879,2782.4,2782.1,3.2078]
[1740363888993,0.71878,2782.5,2782.1,3.2078]
[1740363889295,0.71878,2782.5,2782.1,3.92666]
[1740363889594,0.71879,2782.4,2782.1,3.2078]
[1740363889782,3.2078,2782.6,2782.1,3.2078]
[1740363889988,0.71884,2782.2,2782.1,3.2078]
[1740363890191,3.2078,2782.6,2782.1,3.2078]
[1740363890492,0.72411733,2782.7,2782.3,0.7188]
[1740363890693,0.00539733,2782.7,2782.1,3.2078]
[1740363891094,0.71876,2782.5,2782.1,3.92665]
[1740363891496,0.71879,2782.4,2782.1,3.2078]
[1740363891697,0.71877,2782.5,2782.1,3.92666]
[1740363892495,0.71884,2782.2,2782.1,3.2078]
[1740363892894,4.04512055,2782.6,2782.1,3.2078]
[1740363893095,0.71884,2782.2,2782.1,3.2078]
[1740363893295,0.71888,2782.1,2781.8,3.2078]
[1740363893492,0.71889,2782.0,2781.8,3.2078]
[1740363893698,4.04512055,2782.6,2781.8,3.2078]
[1740363894000,1.79697,2782.4,2781.8,3.2078]
[1740363894196,0.71895,2781.8,2781.6,1.64943074]
[1740363894397,3.2078,2782.3,2781.6,2.36842074]
[1740363894590,3.2078,2782.3,2781.7,0.71896]
[1740363894987,3.2078,2782.3,2781.8,2.572]
[1740363895192,3.92662,2782.3,2781.9,0.7189]
[1740363895492,3.92662,2782.3,2781.8,5.7798]
[1740363895687,3.2078,2782.3,2782.0,0.71888]
[1740363895891,3.92661,2782.3,2781.8,5.7798]
[1740363896094,0.71885,2782.2,2781.8,5.7798]
[1740363896603,3.92662,2782.3,2781.9,0.7189]
[1740363896792,3.2078,2782.3,2781.8,5.7798]
[1740363896996,0.00539733,2782.7,2782.5,0.71874]
[1740363897197,0.00539733,2782.7,2782.5,2.568]
[1740363897701,0.00539733,2782.7,2782.5,3.83544]
[1740363897902,0.00539733,2782.7,2782.6,0.71873]
[1740363898097,0.00539733,2782.7,2782.6,1.26583]
[1740363898302,0.00539733,2782.7,2782.6,0.5471]
[1740363898703,0.00539733,2782.7,2782.6,1.26583]
[1740363900306,0.00539733,2782.7,2782.1,3.2078]
[1740363900607,0.71877,2782.5,2782.2,5.7698]
[1740363900798,3.21319733,2782.7,2782.0,3.6202]
[1740363901097,3.2078,2782.4,2782.0,1.0562]
[1740363901304,3.2078,2782.4,2781.5,2.565]
[1740363901502,0.71881,2782.3,2781.8,0.71894]
[1740363901702,4.084,2782.6,2781.5,5.7728]
[1740363901703,0.00539733,2782.7,2782.1,3.2078]
[1740363901900,0.00539733,2782.7,2782.3,0.71879]
[1740363902105,0.00539733,2782.7,2782.2,4.1972]
[1740363902300,0.00539733,2782.7,2782.5,0.71875]
[1740363902500,0.00539733,2782.7,2782.6,2.573]
[1740363902906,0.00539733,2782.7,2782.6,3.29173]
[1740363903202,0.84023133,2783.3,2783.2,0.71858]
[1740363903413,3.2078,2783.9,2783.2,5.7878]
[1740363903601,3.2078,2783.9,2783.3,41.9034]
[1740363903808,0.71845,2783.7,2783.3,41.9034]
[1740363904414,0.00539733,2783.8,2783.4,3.29851]
[1740363904609,0.00539733,2783.8,2783.6,0.71846]
[1740363905003,0.00539733,2783.8,2783.4,2.58]
[1740363905209,0.00539733,2783.8,2783.4,3.29851]
[1740363905411,0.00539733,2783.8,2783.4,2.58]
[1740363905612,0.72383733,2783.8,2783.4,2.58]
[1740363905908,0.00539733,2783.8,2783.4,2.58]
[1740363906112,0.00539733,2783.8,2783.6,0.71847]
[1740363906309,0.00539733,2783.8,2783.4,2.58]
[1740363906715,0.00539733,2783.8,2783.5,0.71848]
[1740363907113,0.00539733,2783.8,2783.4,2.58]
[1740363907317,0.71849,2783.6,2783.4,2.58]
[1740363907518,0.00539733,2783.8,2783.4,2.58]
[1740363907716,0.00539733,2783.8,2783.4,5.7878]
[1740363908910,0.00539733,2783.8,2783.7,3.92625]
[1740363910113,0.00539733,2783.8,2783.7,3.2078]
[1740363910626,0.00539733,2783.8,2783.6,0.71846]
[1740363911121,0.00539733,2783.8,2783.7,0.71845]
[1740363911321,0.00539733,2783.8,2783.7,3.2078]
[1740363911522,0.00539733,2783.8,2783.5,0.71849]
[1740363911718,0.00539733,2783.8,2783.4,3.2078]
[1740363911918,0.00539733,2783.8,2783.3,1.1034]
[1740363912116,0.00539733,2783.8,2783.5,2.572]
[1740363912619,0.00539733,2783.8,2783.6,0.71846]
[1740363912822,0.00539733,2783.8,2783.5,2.572]
[1740363913818,0.71847,2783.6,2783.5,2.572]
[1740363914012,0.00539733,2783.8,2783.5,2.572]
[1740363914218,0.72383733,2783.8,2783.5,2.572]
[1740363914522,0.00539733,2783.8,2783.5,2.572]
[1740363915116,0.71846,2783.7,2783.5,2.569]
[1740363915317,0.00539733,2783.8,2783.5,2.569]
[1740363915513,0.00539733,2783.8,2783.5,3.2875]
[1740363916127,0.00539733,2783.8,2783.5,2.569]
[1740363916128,0.71847,2783.6,2783.5,2.569]
[1740363917620,0.71846,2783.7,2783.5,2.569]
[1740363917821,0.71855,2783.3,2783.2,0.00539733]
[1740363918021,0.71855,2783.3,2783.2,2.56939733]
[1740363918222,0.71855,2783.3,2783.2,0.00539733]
[1740363920427,1.25675,2783.3,2783.2,0.00539733]
[1740363921020,0.71855,2783.3,2783.2,0.00539733]
[1740363922428,3.2078,2783.4,2783.2,0.00539733]
[1740363922630,2.987,2783.7,2783.2,2.56339733]
[1740363922823,0.00539733,2783.8,2783.2,2.56339733]
[1740363923024,0.00539733,2783.8,2783.3,3.758]
[1740363923225,0.00539733,2783.8,2783.5,0.71848]
[1740363923431,0.00539733,2783.8,2783.6,3.28446]
[1740363923626,0.00539733,2783.8,2783.6,2.566]
[1740363924233,0.72383733,2783.8,2783.6,2.566]
[1740363924631,0.00539733,2783.8,2783.6,2.566]
[1740363925036,0.72382733,2783.8,2783.6,2.566]
[1740363925434,0.71845,2783.7,2783.6,2.566]
[1740363926135,0.71845,2783.7,2783.3,3.2078]
[1740363926136,0.71855,2783.3,2783.2,0.00539733]
[1740363926331,0.71855,2783.3,2783.2,2.56339733]
[1740363927635,3.2078,2783.4,2783.2,2.56339733]
[1740363928230,0.00539733,2783.8,2783.2,2.56339733]
[1740363928434,3.21319733,2783.8,2783.2,3.28196733]
[1740363928629,3.21319733,2783.8,2783.2,2.56339733]
[1740363928830,0.00539733,2783.8,2783.2,2.56339733]
[1740363929230,0.00539733,2783.8,2783.6,0.71846]
[1740363929537,0.00539733,2783.8,2783.6,3.27146]
[1740363929930,0.00539733,2783.8,2783.7,0.71845]
[1740363930934,0.00539733,2783.8,2783.6,3.0815]
[1740363931137,0.00539733,2783.8,2783.7,0.71845]
[1740363932228,4.2783,2784.5,2783.6,3.6128]
[1740363932229,3.2078,2784.5,2783.6,3.6128]
[1740363932435,3.2078,2784.5,2784.2,0.71831]
[1740363932735,3.2078,2784.5,2783.7,3.2078]
[1740363932736,1.0822,2785.0,2784.3,2.548]
[1740363932938,0.82355229,2785.1,2784.9,0.71813]
[1740363933144,0.82355229,2785.1,2785.0,0.71811]
[1740363933446,0.00413298,2785.3,2785.0,0.71811]
[1740363933655,0.00413298,2785.3,2784.9,3.27113]
[1740363933851,0.00413298,2785.3,2785.0,0.71811]
[1740363934148,0.00413298,2785.3,2785.2,0.71806]
[1740363934344,0.5604,2786.2,2785.1,3.5226]
[1740363934345,3.2078,2786.1,2785.1,3.5226]
[1740363934539,3.2078,2786.1,2785.3,3.2078]
[1740363934746,0.71786,2786.0,2785.5,0.71797]
[1740363934941,16.47146574,2786.3,2785.8,0.71791]
[1740363935148,16.47146574,2786.3,2785.8,2.556]
[1740363935356,11.45537075,2786.3,2786.2,0.7178]
[1740363935542,11.45537075,2786.3,2786.2,2.56]
[1740363936347,0.71778,2786.3,2786.2,2.56]
[1740363936551,0.71783,2786.1,2786.0,2.559]
[1740363936947,3.2078,2786.4,2785.8,0.00538725]
[1740363937156,0.71788,2785.9,2785.8,0.00538725]
[1740363937354,0.71787,2786.0,2785.8,0.00538725]
[1740363937548,3.2078,2786.4,2785.8,0.00538725]
[1740363937760,0.5476,2786.5,2785.8,0.00538725]
[1740363938255,0.71781,2786.2,2785.8,0.00538725]
[1740363938457,0.71788,2785.9,2785.8,0.00538725]
[1740363939359,3.2078,2786.2,2785.8,0.00538725]
[1740363939558,0.71788,2785.9,2785.8,0.00538725]
[1740363939757,3.2078,2786.2,2785.8,0.00538725]
[1740363939954,0.71783,2786.1,2785.8,0.00538725]
[1740363940254,3.2078,2786.2,2785.8,0.00538725]
[1740363940656,3.92568,2785.9,2785.8,0.00538725]
[1740363942260,3.2078,2785.9,2785.8,0.00538725]
[1740363942459,0.71788,2785.9,2785.8,0.00538725]
[1740363942659,3.2078,2786.2,2785.8,0.00538725]
[1740363943159,0.71788,2786.0,2785.8,0.00538725]
[1740363943359,0.71788,2785.9,2785.8,0.00538725]
[1740363944165,3.2078,2786.2,2785.8,0.00538725]
[1740363944365,0.71788,2786.0,2785.8,2.55638725]
[1740363944662,3.2078,2786.2,2785.8,2.55638725]
[1740363945566,0.71784,2786.1,2785.8,2.55638725]
[1740363945766,3.2078,2786.2,2785.8,2.55638725]
[1740363945966,3.92563,2786.2,2785.8,3.27428725]
[1740363946167,0.71783,2786.1,2785.8,3.27428725]
[1740363946461,3.2078,2786.2,2785.8,2.55638725]
[1740363946659,3.92561,2786.2,2785.9,0.71787]
[1740363947070,3.2078,2786.2,2785.8,2.55638725]
[1740363947259,3.7301,2786.4,2785.8,5.76418725]
[1740363947460,0.5223,2786.4,2786.2,0.71779]
[1740363947667,0.5223,2786.4,2785.8,5.76418725]
[1740363947969,0.5223,2786.4,2785.9,40.8]
[1740363948164,0.5223,2786.4,2786.2,0.7178]
[1740363948368,3.2078,2786.7,2786.4,0.71774]
[1740363948657,3.2078,2786.7,2786.2,2.543]
[1740363948969,0.71772,2786.6,2786.2,2.543]
[1740363949171,3.2078,2786.7,2786.2,2.543]
[1740363949668,0.71774,2786.5,2786.2,2.543]
[1740363949965,0.7177,2786.6,2786.2,2.543]
[1740363950170,0.7177,2786.6,2786.2,3.26079]
[1740363950770,0.7177,2786.6,2786.3,0.71777]
[1740363950971,0.7177,2786.6,2786.2,2.543]
[1740363951268,0.7178,2786.3,2786.0,0.71785]
[1740363951569,0.71776,2786.4,2786.2,2.536]
[1740363951771,3.2078,2786.4,2785.8,3.21318725]
[1740363951967,0.71781,2786.2,2785.9,2.536]
[1740363952268,3.2078,2786.4,2786.0,0.71786]
[1740363952466,0.71778,2786.3,2786.0,0.71786]
[1740363952663,3.2078,2786.7,2785.9,2.536]
[1740363952859,3.2078,2786.7,2785.8,0.00538725]
[1740363953064,0.71771,2786.6,2786.3,0.71777]
[1740363953263,0.71774,2786.5,2786.2,0.7178]
[1740363953572,3.2078,2786.7,2786.2,0.7178]
[1740363953760,0.71772,2786.6,2786.2,0.7178]
[1740363953963,0.71772,2786.6,2785.9,2.533]
[1740363953964,3.2078,2786.7,2785.9,2.533]
[1740363954263,0.71773,2786.5,2786.1,0.71781]
[1740363954467,3.2078,2786.7,2785.9,2.533]
[1740363954661,3.2078,2786.7,2786.2,0.71779]
[1740363954856,0.71779,2786.3,2785.9,2.533]
[1740363955061,0.71779,2786.3,2785.9,3.25087]
[1740363955266,0.7177,2786.6,2786.0,0.71784]
[1740363955465,3.2078,2786.7,2785.9,3.25087]
[1740363955859,0.71777,2786.4,2785.9,3.25087]
[1740363956063,3.2078,2786.7,2785.9,3.25087]
[1740363956268,3.2078,2786.7,2786.0,2.527]
[1740363956469,0.71783,2786.1,2786.0,2.527]
[1740363956969,0.71787,2786.0,2785.9,2.527]
[1740363957765,1.0633,2786.3,2785.8,3.21318725]
[1740363957966,0.71788,2785.9,2785.8,0.00538725]
[1740363958471,2.85775,2786.3,2785.8,0.00538725]
[1740363958472,0.71787,2786.0,2785.8,0.00538725]
[1740363958765,0.71784,2786.1,2785.8,0.72327725]
[1740363959072,0.71785,2786.1,2785.8,0.00538725]
[1740363959571,1.0633,2786.3,2785.8,0.00538725]
[1740363959764,0.71785,2786.1,2785.8,0.72327725]
[1740363960164,0.71785,2786.1,2785.8,0.00538725]
[1740363960366,0.71787,2786.0,2785.8,0.00538725]
[1740363960673,1.0633,2786.3,2785.8,0.00538725]
[1740363960870,1.78109,2786.3,2785.8,0.00538725]
[1740363961072,0.71782,2786.2,2785.8,0.72327725]
[1740363961268,1.0633,2786.3,2785.8,0.00538725]
[1740363961471,3.2078,2786.4,2786.3,0.71778]
[1740363962077,3.2078,2786.4,2786.3,41.51778]
[1740363962372,2.519,2787.1,2786.3,41.51777]
[1740363962373,0.71766,2786.8,2786.3,41.51777]
[1740363962674,3.2078,2787.0,2786.3,40.8]
[1740363963069,3.92533,2787.3,2786.7,3.2078]
[1740363963275,3.92533,2787.3,2786.8,3.23564]
[1740363963473,3.2078,2787.3,2786.8,2.518]
[1740363963775,0.71759,2787.1,2786.8,2.518]
[1740363964075,0.71756,2787.2,2786.8,3.23565]
[1740363964275,3.2078,2787.3,2786.8,2.518]
[1740363964679,0.71756,2787.2,2786.8,2.518]
[1740363965574,3.2078,2787.3,2786.8,2.518]
[1740363965874,3.92532,2787.3,2786.9,0.71761]
[1740363966083,3.92532,2787.3,2786.9,0.5653]
[1740363966373,3.2078,2787.3,2786.9,0.5653]
[1740363966579,0.82407351,2787.5,2786.9,3.7731]
[1740363966780,0.82407351,2787.5,2787.0,0.5369]
[1740363966979,0.82407351,2787.5,2787.1,0.71755]
[1740363967180,0.82407351,2787.8,2787.2,2.513]
[1740363967380,0.71743,2787.7,2787.2,2.513]
[1740363967576,0.71742,2787.7,2787.3,0.7175]
[1740363967979,0.71742,2787.7,2787.2,2.51838725]
[1740363968181,4.03187351,2787.9,2787.2,3.23591725]
[1740363968378,0.71749,2787.5,2787.2,2.51838725]
[1740363968578,0.71751,2787.4,2787.2,2.51838725]
[1740363968774,0.71749,2787.5,2787.2,2.51838725]
[1740363968977,0.71752,2787.3,2787.2,0.00538725]
[1740363969279,0.71751,2787.4,2787.2,2.51438725]
[1740363969581,3.92532,2787.3,2787.2,0.00538725]
[1740363970581,3.92532,2787.3,2787.2,7.25e-06]
[1740363971983,3.2078,2787.3,2787.2,7.25e-06]
[1740363972684,3.92532,2787.3,2787.2,7.25e-06]
[1740363973684,9.92532,2787.3,2787.2,7.25e-06]
[1740363974077,3.92532,2787.3,2787.2,7.25e-06]
[1740363978277,3.2078,2787.3,2787.2,7.25e-06]
[1740363978481,3.92532,2787.3,2787.2,7.25e-06]
[1740363978679,3.2078,2787.3,2787.2,7.25e-06]
[1740363978878,3.2078,2787.3,2787.2,0.56150725]
[1740363979788,3.92532,2787.3,2787.2,0.56150725]
[1740363983487,3.2078,2787.3,2787.2,0.56150725]
[1740363983691,0.72286001,2787.5,2787.2,1.27905725]
[1740363983985,0.72286001,2787.5,2787.2,0.56150725]
[1740363984191,3.93066001,2787.5,2787.2,0.56150725]
[1740363984488,0.00538001,2787.5,2787.2,0.56150725]
[1740363984788,0.00538001,2787.5,2787.3,0.7175]
[1740363985090,0.00538001,2787.5,2787.4,2.501]
[1740363985693,0.00538001,2787.5,2787.2,0.56150725]
[1740363985885,0.71752,2787.3,2787.2,3.06150725]
[1740363986192,0.00538001,2787.5,2787.2,3.06150725]
[1740363986394,0.00538001,2787.5,2787.2,3.77903725]
[1740363986580,0.00538001,2787.5,2787.2,3.06150725]
[1740363986786,0.00538001,2787.5,2787.4,0.7175]
[1740363987792,0.00538001,2787.5,2787.3,3.2078]
[1740363987994,0.72286001,2787.5,2787.3,3.2078]
[1740363988189,0.00538001,2787.5,2787.3,3.2078]
[1740363988390,0.72286001,2787.5,2787.3,3.2078]
[1740363988887,0.00538001,2787.5,2787.3,3.2078]
[1740363989090,0.00538001,2787.5,2787.3,3.9253]
[1740363989292,0.72286001,2787.5,2787.3,3.2078]
[1740363989495,0.00538001,2787.5,2787.3,3.2078]
[1740363989789,0.7175,2787.4,2787.3,3.2078]
[1740363989995,0.00538001,2787.5,2787.2,3.06150725]
[1740363990295,0.72286001,2787.5,2787.2,3.06150725]
[1740363990792,0.72286001,2787.5,2787.2,3.77903725]
[1740363991196,0.00538001,2787.5,2787.2,3.77903725]